Workbook

Sheet Inputs
A11: Roma Brisbane Pipeline
A12: Reference Tariff Model
A14: Item | B14: Dollars | C14: FY2023 | D14: FY2024 | E14: FY2025 | F14: FY2026 | G14: FY2027
A17: Building Block Revenue
A19: Building Block Revenue from PTRM | B19: Forecast Nom | C19: 42.36560102 | D19: 44.33840952 | E19: 47.35310757 | F19: 49.42438227 | G19: 46.48820888
A21: Demand
A23: Eastbound C&I | B23: TJ MDQ/Day | C23: Confidential
A24: GPG | B24: TJ MDQ/Day | C24: 6.2 | D24: 4.1 | E24: 3.5 | F24: 4.8 | G24: 6.8
A25: Prudent Discount | B25: TJ MDQ/Day | C25: Confidential
A26: Prudent Discount Volumes | B26: GJ
A27: Westbound | B27: TJ MDQ/Day | C27: 68 | D27: 64 | E27: 56 | F27: 52 | G27: 52
A28: Competitive Westbound | B28: TJ MDQ/Day | C28: 17 | D28: 16 | E28: 14 | F28: 13 | G28: 13
A29: Total Westbound | B29: TJ MDQ/Day | C29: 85 | D29: 80 | E29: 70 | F29: 65 | G29: 65
A31: Set Prices
A33: Westbound | B33: $/GJ MDQ/Day | C33: 0.3199 | D33: =C33 -> 0.3199 | E33: 0.3199 | F33: 0.3199 | G33: 0.3199
A34: Prudent Discount | B34: $/GJ MDQ/Day | C34: Confidential
A35: Prudent Discount | B35: $/GJ
A37: Other inputs | C37: FY2022
A39: CPI | C39: 0.0199938725
A40: $FY22 index | C40: =1*(1+C39) -> 1.019993873 | D40: =C40*(1+FY22Inf) -> 1.0403875 | E40: =D40*(1+FY22Inf) -> 1.061188875 | F40: =E40*(1+FY22Inf) -> 1.08240615 | G40: =F40*(1+FY22Inf) -> 1.104047641
A42: WACC | B42: nominal vanilla | C42: 0.04363773733
A44: Days in Year | B44: days | C44: 365 | D44: 366 | E44: 365 | F44: 365 | G44: 365
A46: Terajoule | B46: GJ | C46: 1000 | D46: 1000 | E46: 1000 | F46: 1000 | G46: 1000
A48: FY 2022 Forecast Revenue | B48: $FY22 | C48: 42.3546
A50: Reference tariff | B50: $FY22 | C50: 0.58019201
A52: Real Revenue from PTRM | B52: $FY22 | C52: 41.53515248 | D52: 42.14563183 | E52: 42.01059599 | F52: 43.84776526 | G52: 47.20259774

Sheet Calculations
A11: Roma Brisbane Pipeline
A12: Reference Tariff Model
A14: Item | B14: Dollars | C14: FY2023 | D14: FY2024 | E14: FY2025 | F14: FY2026 | G14: FY2027 | I14: NPV
A16: Building Block Revenue | B16: =Inputs!B19 -> Forecast Nom | C16: =Inputs!C19 -> 42.36560102 | D16: =Inputs!D19 -> 44.33840952 | E16: =Inputs!E19 -> 47.35310757 | F16: =Inputs!F19 -> 49.42438227 | G16: =Inputs!G19 -> 46.48820888 | I16: =NPV(WACC,C16,D16,E16,F16,G16) -> 202.1711217
A18: Total Volumes | B18: GJ MDQ/year | C18: 81103000 | D18: 77775000 | E18: 73146000 | F18: 71795500 | G18: 72525500
A19: Smoothed Revenue | C19: =C18*C20/1000000 -> 42.36560102 | D19: =D18*D20/1000000 -> 43.94556275 | E19: 44.7058287 | F19: 47.46454805 | G19: 51.8634514 | I19: =NPV(WACC,C19,D19,E19,F19,G19) -> 202.171098
A20: Reference tariff | C20: =FY22RefTariff*(1-C21/100)*(1+FY22Inf) -> 0.5223678658 | D20: =C20*(1-D21/100)*(1+FY22Inf) -> 0.565034558 | E20: =D20*(1-E21/100)*(1+FY22Inf) -> 0.6111862398 | F20: =E20*(1-F21/100)*(1+FY22Inf) -> 0.6611075632 | G20: =F20*(1-G21/100)*(1+FY22Inf) -> 0.7151064301
A21: "Vanilla" X factor | C21: 11.73121546 | D21: -6.047636746 | E21: =D21 -> -6.047636746 | F21: -6.047636746 | G21: -6.047636746 | I21: =I16-I19 -> 2.375357118e-05
C23: =C16-C19 -> 0
A25: Eastbound
A26: EastBound Volumes | B26: GJ MDQ/year | C26: 50078000 | D26: 48495000 | E26: 47596000 | F26: 48070500 | G26: 48800500
A27: Eastbound Revenues | C27: =C20*C26/1000000 -> 26.15913798 | D27: =D20*D26/1000000 -> 27.40135089 | E27: =E20*E26/1000000 -> 29.09002027 | F27: =F20*F26/1000000 -> 31.77977112 | G27: =G20*G26/1000000 -> 34.89755134 | I27: =NPV(WACC,C27,D27,E27,F27,G27) -> 130.7900898
A29: Eastbound Prudent Discount
A30: Prudent Discount Firm Demand | B30: =B18 -> GJ MDQ/year | C30: Confidential
A31: Prudent Discount Volume Revenue | B31: =Inputs!B26 -> GJ
A33: Prudent Discount Firm Tariff | B33: =Inputs!B34 -> $/GJ MDQ/Day | C33: Confidential
A34: Prudent Discount Volume tariff | B34: =Inputs!B35 -> $/GJ
A36: Prudent Discount Revenue | B36: $m | C36: confidential | I36: Confidential
A38: Eastbound Prudent Discount
A39: Reference Revenue Eastbound | B39: =B36 -> $m | C39: Confidential | I39: Confidential
A40: Non Discount Demand | B40: =B30 -> GJ MDQ/year
A41: Eastbound smoothed reference service | B41: =B39 -> $m | I41: Confidential
A42: Eastbound reference tariff | C42: =FY22RefTariff*(1-C44/100)*(1+FY22Inf) -> 0.5579044296 | D42: =C42*(1-D44/100)*(1+FY22Inf) -> 0.6170650685 | E42: =D42*(1-E44/100)*(1+FY22Inf) -> 0.6824991496 | F42: =E42*(1-F44/100)*(1+FY22Inf) -> 0.7548719138 | G42: =F42*(1-G44/100)*(1+FY22Inf) -> 0.8349191447
C43: P0 | D43: X1 | E43: X2 | F43: X3 | G43: X4
A44: Eastbound X factor | C44: 5.72631069 | D44: -8.436025168 | E44: =D44 -> -8.436025168 | F44: -8.436025168 | G44: -8.436025168 | I44: 3.076559194e-05
A46: Residual in year 1 | C46: 0
A50: Westbound
A51: WestBound Volumes | B51: GJ MDQ/year | C51: =Inputs!C29*Inputs!C44*Inputs!C46 -> 31025000 | D51: =Inputs!D29*Inputs!D44*Inputs!D46 -> 29280000 | E51: =Inputs!E29*Inputs!E44*Inputs!E46 -> 25550000 | F51: =Inputs!F29*Inputs!F44*Inputs!F46 -> 23725000 | G51: =Inputs!G29*Inputs!G44*Inputs!G46 -> 23725000
A52: Westbound Revenues | C52: =C51*C20/1000000 -> 16.20646304 | D52: =D51*D20/1000000 -> 16.54421186 | E52: =E51*E20/1000000 -> 15.61580843 | F52: =F51*F20/1000000 -> 15.68477694 | G52: =G51*G20/1000000 -> 16.96590005 | I52: =NPV(WACC,C52,D52,E52,F52,G52) -> 71.38100811
A54: Westbound Prudent Discount
A55: =Inputs!A34 -> Prudent Discount | B55: =Inputs!B34 -> $/GJ MDQ/Day | C55: =Inputs!C33 -> 0.3199 | D55: =Inputs!D33 -> 0.3199 | E55: =Inputs!E33 -> 0.3199 | F55: =Inputs!F33 -> 0.3199 | G55: =Inputs!G33 -> 0.3199
A56: Prudent Discount Firm Demand | B56: =B30 -> GJ MDQ/year | C56: =Inputs!C28*Inputs!C44*Inputs!C46 -> 6205000 | D56: =Inputs!D28*Inputs!D44*Inputs!D46 -> 5856000 | E56: =Inputs!E28*Inputs!E44*Inputs!E46 -> 5110000 | F56: =Inputs!F28*Inputs!F44*Inputs!F46 -> 4745000 | G56: =Inputs!G28*Inputs!G44*Inputs!G46 -> 4745000
A57: Prudent Discount Revenue | B57: $m | C57: =C55*C56/1000000 -> 1.9849795 | D57: =D55*D56/1000000 -> 1.8733344 | E57: 1.634689 | F57: 1.5179255 | G57: 1.5179255 | I57: =NPV(WACC,C57,D57,E57,F57,G57) -> 7.565584246
A59: Westbound Reference Tariff
A60: Remaining Building Block Revenue | B60: =B57 -> $m | C60: =C52-C57 -> 14.22148354 | D60: =D52-D57 -> 14.67087746 | E60: 13.98111943 | F60: 14.16685144 | G60: 15.44797455 | I60: =NPV(WACC,C60,D60,E60,F60,G60) -> 63.81542387
A62: Non Discount Demand | B62: GJ MDQ/year | C62: =Inputs!C27*Inputs!C44*Inputs!C46 -> 24820000 | D62: =Inputs!D27*Inputs!D44*Inputs!D46 -> 23424000 | E62: =Inputs!E27*Inputs!E44*Inputs!E46 -> 20440000 | F62: =Inputs!F27*Inputs!F44*Inputs!F46 -> 18980000 | G62: =Inputs!G27*Inputs!G44*Inputs!G46 -> 18980000
A64: Westbound Revenue | B64: =B57 -> $m | C64: =(C62*C66)/1000000 -> 14.22148354 | D64: =(D62*D66)/1000000 -> 14.65852201 | E64: =(E62*E66)/1000000 -> 13.96998738 | F64: =(F62*F66)/1000000 -> 14.16763399 | G64: =(G62*G66)/1000000 -> 15.47331358 | I64: =NPV(WACC,C64,D64,E64,F64,G64) -> 63.81541287
A66: Reference Tariff | B66: $/GJ MDQ/Day | C66: =FY22RefTariff*(1-Calculations!C69/100)*(1+FY22Inf) -> 0.5729848323 | D66: =C66*(1-Calculations!D69/100)*(1+FY22Inf) -> 0.6257907278 | E66: =D66*(1-Calculations!E69/100)*(1+FY22Inf) -> 0.6834631791 | F66: =E66*(1-Calculations!F69/100)*(1+FY22Inf) -> 0.7464506846 | G66: =F66*(1-Calculations!G69/100)*(1+FY22Inf) -> 0.8152430761 | I66: =I60-I64 -> 1.099507786e-05
C68: P0 | D68: X1 | E68: X2 | F68: X3 | G68: X4
A69: Westbound X factors | C69: 3.178051305 | D69: -7.075086898 | E69: =D69 -> -7.075086898 | F69: -7.075086898 | G69: -7.075086898
A71: Residual in year 1 | C71: =C52-C57-C64 -> 0
A74: Proof
A75: Smoothed | B75: =B64 -> $m | C75: 42.36560102 | D75: 43.84778853 | E75: 44.5811771 | F75: 47.46109078 | G75: 52.11391667 | I75: =NPV(WACC,C75,D75,E75,F75,G75) -> 202.1710562
A76: =A16 -> Building Block Revenue | B76: Forecast Nom | C76: 42.36560102 | D76: 44.33840952 | E76: 47.35310757 | F76: 49.42438227 | G76: 46.48820888 | I76: =NPV(WACC,C76,D76,E76,F76,G76) -> 202.1711217
I77: =I75-I76 -> -6.551424104e-05

Sheet Outputs
B1: X Factors
B2: Reference Service | C2: =Calculations!C68 -> P0 | D2: =Calculations!D68 -> X1 | E2: =Calculations!E68 -> X2 | F2: =Calculations!F68 -> X3 | G2: =Calculations!G68 -> X4
B3: =Calculations!A44 -> Eastbound X factor | C3: =Calculations!C44 -> 5.72631069 | D3: =Calculations!D44 -> -8.436025168 | E3: =Calculations!E44 -> -8.436025168 | F3: =Calculations!F44 -> -8.436025168 | G3: =Calculations!G44 -> -8.436025168
B4: =Calculations!A69 -> Westbound X factors | C4: =Calculations!C69 -> 3.178051305 | D4: =Calculations!D69 -> -7.075086898 | E4: =Calculations!E69 -> -7.075086898 | F4: =Calculations!F69 -> -7.075086898 | G4: =Calculations!G69 -> -7.075086898
B6: Forecast Reference Tariff (Nominal)
B7: Service | C7: FY23 | D7: FY24 | E7: FY25 | F7: FY26 | G7: FY27
B8: Eastbound Long Term Firm Service | C8: =ROUND(Calculations!C42,4) -> 0.5579 | D8: =ROUND(Calculations!D42,4) -> 0.6171 | E8: =ROUND(Calculations!E42,4) -> 0.6825 | F8: =ROUND(Calculations!F42,4) -> 0.7549 | G8: =ROUND(Calculations!G42,4) -> 0.8349
B9: Westbound Long Term Firm Service | C9: =ROUND(Calculations!C66,4) -> 0.573 | D9: =ROUND(Calculations!D66,4) -> 0.6258 | E9: =ROUND(Calculations!E66,4) -> 0.6835 | F9: =ROUND(Calculations!F66,4) -> 0.7465 | G9: =ROUND(Calculations!G66,4) -> 0.8152
B11: Forecast Reference Tariff (Real)
B12: Service | C12: FY23 | D12: FY24 | E12: FY25 | F12: FY26 | G12: FY27
B13: Eastbound Long Term Firm Service | C13: =ROUND(C8/Inputs!C$40,4) -> 0.547 | D13: =ROUND(D8/Inputs!D$40,4) -> 0.5931 | E13: =ROUND(E8/Inputs!E$40,4) -> 0.6431 | F13: =ROUND(F8/Inputs!F$40,4) -> 0.6974 | G13: =ROUND(G8/Inputs!G$40,4) -> 0.7562
B14: Westbound Long Term Firm Service | C14: =ROUND(C9/Inputs!C$40,4) -> 0.5618 | D14: =ROUND(D9/Inputs!D$40,4) -> 0.6015 | E14: =ROUND(E9/Inputs!E$40,4) -> 0.6441 | F14: =ROUND(F9/Inputs!F$40,4) -> 0.6897 | G14: =ROUND(G9/Inputs!G$40,4) -> 0.7384
B17: Demand (Confidential) | J17: Demand (Public)
B19: Component (TJ MDW/Day) | C19: FY23 | D19: FY24 | E19: FY25 | F19: FY26 | G19: FY27 | J19: Component | K19: FY23 | L19: FY24 | M19: FY25 | N19: FY26 | O19: FY27
B20: Westbound | C20: Confidential | J20: =B20 -> Westbound | K20: =Inputs!C27 -> 68 | L20: =Inputs!D27 -> 64 | M20: =Inputs!E27 -> 56 | N20: =Inputs!F27 -> 52 | O20: =Inputs!G27 -> 52
B21: GPG | J21: =B21 -> GPG | K21: =Inputs!C24 -> 6.2 | L21: =Inputs!D24 -> 4.1 | M21: =Inputs!E24 -> 3.5 | N21: =Inputs!F24 -> 4.8 | O21: =Inputs!G24 -> 6.8
B22: =Inputs!A25 -> Prudent Discount | J22: =B23 -> Eastbound | K22: 131 | L22: 128.4 | M22: 126.9 | N22: 126.9 | O22: 126.9
B23: Eastbound | J23: =B24 -> Total | K23: =SUM(K20:K22) -> 205.2 | L23: =SUM(L20:L22) -> 196.5 | M23: 186.4 | N23: 183.7 | O23: 185.7
B24: Total | C24: 205.2 | D24: 196.5 | E24: 186.4 | F24: 183.7 | G24: 185.7
B27: Revenue | D27: FY23 | E27: FY24 | F27: FY25 | G27: FY26 | H27: FY27
B28: Eastbound Prudent Discount Revenue | C28: =Calculations!B36 -> $m | D28: Confidential
B29: =Calculations!A41 -> Eastbound smoothed reference service | C29: =Calculations!B41 -> $m
B30: Westbound Prudent Discount Revenue | C30: =Calculations!B57 -> $m
B31: =Calculations!A64 -> Westbound Revenue | C31: =Calculations!B64 -> $m
B32: Total "smoothed" Revenue | C32: $m | D32: 42.36560102 | E32: 43.84778853 | F32: 44.5811771 | G32: 47.46109078 | H32: 52.11391667
B34: Eastbound Reference Tariff | C34: $GJ MDQ | D34: =Calculations!C42 -> 0.5579044296 | E34: =Calculations!D42 -> 0.6170650685 | F34: =Calculations!E42 -> 0.6824991496 | G34: =Calculations!F42 -> 0.7548719138 | H34: =Calculations!G42 -> 0.8349191447
B35: GPG Volumes | C35: GJ MDQ PA | D35: =Inputs!C24*Inputs!C44*Inputs!C46 -> 2263000 | E35: =Inputs!D24*Inputs!D44*Inputs!D46 -> 1500600 | F35: =Inputs!E24*Inputs!E44*Inputs!E46 -> 1277500 | G35: =Inputs!F24*Inputs!F44*Inputs!F46 -> 1752000 | H35: =Inputs!G24*Inputs!G44*Inputs!G46 -> 2482000
B36: GPG Revenue | D36: =D34*D35/1000000 -> 1.262537724 | E36: =E34*E35/1000000 -> 0.9259678418 | F36: =F34*F35/1000000 -> 0.8718926636 | G36: =G34*G35/1000000 -> 1.322535593 | H36: =H34*H35/1000000 -> 2.072269317
B38: Other East bound Revenue | C38: $m | D38: 24.89660026 | E38: 26.38996428 | F38: 28.10460805 | G38: 30.45299569 | H38: 33.05040827
B40: Westbound Revenue | C40: $m | D40: 16.20646304 | E40: 16.53185641 | F40: 15.60467638 | G40: 15.68555949 | H40: 16.99123908
B42: Total Revenue | D42: =D36+D38+D40 -> 42.36560102 | E42: =E36+E38+E40 -> 43.84778853 | F42: =F36+F38+F40 -> 44.5811771 | G42: =G36+G38+G40 -> 47.46109078 | H42: =H36+H38+H40 -> 52.11391667
B45: Real Revenue ($FY22)
B47: Revenue | D47: =D27 -> FY23 | E47: =E27 -> FY24 | F47: FY25 | G47: FY26 | H47: FY27
B48: Revenue | D48: =Inputs!C52*1000000 -> 41535152.48 | E48: =Inputs!D52*1000000 -> 42145631.83 | F48: =Inputs!E52*1000000 -> 42010595.99 | G48: =Inputs!F52*1000000 -> 43847765.26 | H48: =Inputs!G52*1000000 -> 47202597.74
B50: RIN Total | D50: 41535152.48 | E50: 42145631.83 | F50: 42010595.99 | G50: 43847765.26 | H50: 47202597.74
D52: =D48-D50 -> 0 | E52: =E48-E50 -> 0 | F52: 0 | G52: 0 | H52: 0

Sheet Proof Prudent Discount
B2: Confidential
